Cogmind - Beta 10.1 @@@ ROGUE MODE // 2022.01.23 @ 00:26:31 Player: W-ALTER Result: Destroyed by Y-45 Defender with Beam Rifle Performance ------------- Evolutions (2) 1000 Regions Visited (6) 1200 Robots Destroyed (49) 245 Value Destroyed (1080) 1080 Prototype IDs (23) 460 Alien Tech Used (0) 0 Bonus (300) 300 TOTAL SCORE: 4285 Bonus ------- Aligned with FarCom 300 Cogmind --------- Core Integrity 0/550 Matter 52/300 Energy 100/100 System Corruption 2% Temperature Cool (9) Movement Walking (150) Ox1 Location -8/Materials Parts ------- > --- POWER (2) -------- (None) > --- PROPULSION (3) --- Carbon-fiber Leg > --- UTILITY (4) ------ Large Storage Unit > --- WEAPON (2) ------- (None) > --- INVENTORY (10) --- High-capacity Storage Unit Advanced Visual Processing Unit Integration Mediator Light EM Pulse Cannon Peak State ------------ > --- POWER ------------ Ion Engine > --- PROPULSION ------- Aluminum Leg Aluminum Leg Improved Aluminum Leg > --- UTILITY ---------- Large Storage Unit Cloak of Protection Improved Utility Shielding Hardened Medium Armor Plating > --- WEAPON ----------- Grenade Launcher Improved Datajack > --- INVENTORY -------- Large Storage Unit High-capacity Storage Unit High-capacity Storage Unit Advanced Visual Processing Unit Integration Mediator Light EM Pulse Cannon Grenade Launcher Grenade Launcher [Rating: 25] Favorites ----------- Power Ion Engine Engine Ion Engine Propulsion Aluminum Leg Treads Armored Treads Leg Aluminum Leg Utility Large Storage Unit Device Cloak of Protection Storage Large Storage Unit Processor Visual Processing Unit Protection Improved Utility Shielding Weapon Grenade Launcher Energy Gun Medium Laser Energy Cannon Particle Cannon Ballistic Gun Light Assault Rifle Ballistic Cannon Flak Cannon Launcher Grenade Launcher Impact Weapon Hammer Special Melee Weapon Improved Datajack Build | -11 -10 -9 -9 -9 -8 -8 ------- Run | Scr Mat Mat Min Exi Min Mat Slots Evolved 4 | . . 2 . . . 2 Power 1 | . . . . . . 1 Propulsion 1 | . . . . . . 1 Utility 2 | . . 2 . . . . Weapon . | . . . . . . . Parts Attached 39 | 7 10 6 1 1 2 12 Power 5 | 2 2 . . . . 1 Engine 5 | 2 2 . . . . 1 Core . | . . . . . . . Reactor . | . . . . . . . Propulsion 8 | 2 1 2 . . . 3 Treads 1 | . . . . . . 1 Leg 7 | 2 1 2 . . . 2 Wheel . | . . . . . . . Hover . | . . . . . . . Flight . | . . . . . . . Utility 13 | 1 2 3 . 1 2 4 Device 2 | . 1 . . 1 . . Storage 7 | 1 . 3 . . . 3 Processor 1 | . 1 . . . . . Hackware . | . . . . . . . Protection 3 | . . . . . 2 1 Artifact . | . . . . . . . Weapon 13 | 2 5 1 1 . . 4 Energy Gun 1 | 1 . . . . . . Energy Cannon 1 | . 1 . . . . . Ballistic Gun 3 | 1 2 . . . . . Ballistic Cannon 1 | . . . . . . 1 Launcher 5 | . 1 1 1 . . 2 Special Weapon . | . . . . . . . Impact Weapon 1 | . 1 . . . . . Slashing Weapon . | . . . . . . . Piercing Weapon . | . . . . . . . Special Melee Weapon 1 | . . . . . . 1 Unidentified Prototypes . | . . . . . . . Parts Lost 18 | . 2 3 . . . 13 Power 3 | . 1 . . . . 2 Propulsion 6 | . 1 1 . . . 4 Utility 4 | . . 1 . . . 3 Weapon 5 | . . 1 . . . 4 Highest Loss Streak 6 | . 1 2 . . . 6 Average Slot Usage (%) 75 | . 93 67 65 69 96 65 Engine 9 | . 10 11 11 11 11 5 Leg 21 | . 27 19 22 22 22 16 Device 5 | . 6 3 . 3 11 6 Storage 11 | . 14 17 11 11 11 9 Processor 1 | . 4 . . . . . Protection 4 | . . . . . 18 11 Ballistic Gun 1 | . 7 . . . . . Launcher 14 | . 7 12 21 22 22 9 Impact Weapon 2 | . 9 3 . . . . Naked Turns . | . . . . . . . Heaviest Build 75 | 12 15 75 27 35 41 45 Greatest Support 33 | 20 20 23 23 23 23 33 Greatest Overweight (x) 7 | 3 1 7 1 1 1 7 Average Overweight (x) . | . . 1 1 1 1 1 Largest Inventory Capacity 32 | 6 6 24 10 10 10 32 Average Capacity 9 | 5 6 14 10 10 10 10 Most Carried 8 | 2 6 5 5 7 7 8 Average Carried 4 | . 3 4 4 4 5 6 Final Capacity 10 | 6 6 10 10 10 10 10 Final Carried 6 | . 6 5 4 5 5 4 Class Distribution -------------------- 97% | Mutant Dominant Class ---------------- Mutant | -10/Materials Mutant | -9/Materials Mutant | -9/Mines Mutant | -9/Exiles Mutant | -8/Mines Mutant | -8/Materials Resources | -11 -10 -9 -9 -9 -8 -8 ----------- Run | Scr Mat Mat Min Exi Min Mat Matter Collected 821 | 186 181 39 16 200 42 157 Remotely . | . . . . . . . Salvage Created 704 | . 262 171 26 . 25 220 Parts 66 | . 24 5 7 . 5 25 Haulers Intercepted . | . . . . . . . Recyclers Shooed 2 | . . . . . . 2 Parts Field Recycled . | . . . . . . . Retrieved Matter . | . . . . . . . Parts Self-Destructed . | . . . . . . . Prevented . | . . . . . . . Kills | -11 -10 -9 -9 -9 -8 -8 ------- Run | Scr Mat Mat Min Exi Min Mat Combat Hostiles Destroyed 38 | . 11 4 4 . 3 16 Melee 1 | . 1 . . . . . Guns 3 | . 3 . . . . . Cannons 3 | . . . . . . 3 AOE 31 | . 7 4 4 . 3 13 Classes Destroyed 11 | . 7 2 . . . 2 Worker 2 | . 1 . . . . 1 Builder 4 | . 1 . . . . 3 Tunneler 1 | . 1 . . . . . Recycler 1 | . . 1 . . . . Operator 2 | . 2 . . . . . Watcher 1 | . 1 . . . . . Swarmer 21 | . 6 . 4 . 3 8 Grunt 12 | . 5 3 . . . 4 Duelist 1 | . . . . . . 1 Sentry 2 | . . 1 . . . 1 Hunter 2 | . . . . . . 2 Best Kill Streak 13 | . 4 5 4 . 3 13 Combat Bots Only 9 | . 3 4 4 . 3 9 Max Kills in Single Turn 4 | . 3 3 4 . 3 3 Gunslinging . | . . . . . . . Exploded 4 | . 3 2 4 . 3 3 Melee 1 | . 1 . . . . . Uniques/NPCs Destroyed . | . . . . . . . Combat | -11 -10 -9 -9 -9 -8 -8 -------- Run | Scr Mat Mat Min Exi Min Mat Damage Taken 3083 | . 622 205 6 . 45 2205 Core 815 | . 229 24 . . . 562 Absorbed by Shields . | . . . . . . . Core Remaining (%) 67 | 100 8 . . . 94 . Volleys Fired 69 | . 25 6 1 . 2 35 Largest 2 | . 2 2 2 . 1 1 Hottest 70 | . 70 60 60 . 30 44 Shots Fired 86 | . 36 11 2 . 2 35 Gun 22 | . 22 . . . . . Cannon 17 | . . . . . . 17 Launcher 47 | . 14 11 2 . 2 18 Special . | . . . . . . . Kinetic 29 | . 12 . . . . 17 Thermal 10 | . 10 . . . . . Explosive 47 | . 14 11 2 . 2 18 Electromagnetic . | . . . . . . . Robot Hit Streak 11 | . 3 6 . . . 11 Robot Miss Streak 4 | . 2 . . . 1 4 Penetration Max . | . . . . . . . Secondary Targets . | . . . . . . . Shots Hit Robots 54 | . 20 6 . . . 28 Core Hits 88 | . 24 10 4 . 3 47 Critical Hits . | . . . . . . . Critical Kills . | . . . . . . . Critical Parts Destroyed . | . . . . . . . Melee Attacks 5 | . 5 . . . . . Impact 5 | . 5 . . . . . Slashing . | . . . . . . . Piercing . | . . . . . . . Sneak Attacks 3 | . 3 . . . . . Combat Hostiles . | . . . . . . . Follow-up Attacks . | . . . . . . . Damage Inflicted 3004 | . 1073 249 130 . 96 1456 Guns 82 | . 82 . . . . . Cannons 272 | . . . . . . 272 Explosions 2492 | . 833 249 130 . 96 1184 Melee 145 | . 145 . . . . . Ramming 13 | . 13 . . . . . Kinetic 291 | . 19 . . . . 272 Thermal 63 | . 63 . . . . . Explosive 2492 | . 833 249 130 . 96 1184 Electromagnetic . | . . . . . . . Impact 145 | . 145 . . . . . Slashing . | . . . . . . . Piercing . | . . . . . . . Highest Corruption 5 | . 5 . . . . 2 Average Corruption 3 | . 3 . . . . 2 Corruption Purged . | . . . . . . . Effects 14 | . 11 . . . . 3 Message Errors 3 | . 2 . . . . 1 Matter Fused 1 | . 1 . . . . . Heat Flow Errors 3 | . 3 . . . . . Energy Discharges 2 | . 1 . . . . 1 Data Loss (minor) 3 | . 2 . . . . 1 Targeting Errors 2 | . 2 . . . . . Overload Shots . | . . . . . . . Overflow Damage 21 | . 10 . . . . 11 Projectiles . | . . . . . . . Explosions 21 | . 10 . . . . 11 Melee . | . . . . . . . Knockbacks 6 | . 2 . . . . 4 Impact 2 | . 2 . . . . . Kinetic 3 | . . . . . . 3 Secondary 1 | . . . . . . 1 Self-Inflicted Damage 523 | . 153 18 . . . 352 Shots 23 | . 7 2 . . . 14 Rammed 4 | . 3 . . . . 1 Targets Rammed 5 | . 4 . . . . 1 Kicked 1 | . 1 . . . . . Crushed . | . . . . . . . Highest Temperature 261 | . 261 12 . . . . Average Temperature 52 | . 58 8 . . . . Received Heat Transfer 474 | . 120 48 . . 27 279 Effects 1 | . 1 . . . . . Energy Bleed 1 | . 1 . . . . . Siege Activations . | . . . . . . . Robots Corrupted . | . . . . . . . Combat Hostiles . | . . . . . . . Parts Fried . | . . . . . . . Impact Corruptions . | . . . . . . . Robots Melted . | . . . . . . . Combat Hostiles . | . . . . . . . Parts Melted . | . . . . . . . Heat Transferred 185 | . 185 . . . . . Parts Sabotaged . | . . . . . . . Parts Stolen . | . . . . . . . Parts Stripped . | . . . . . . . Power Chain Reactions . | . . . . . . . Missiles Intercepted . | . . . . . . . Alert | -11 -10 -9 -9 -9 -8 -8 ------- Run | Scr Mat Mat Min Exi Min Mat Peak Influence 278 | . 230 168 170 . 89 278 Initial 65 | . . 33 65 . . 34 Average 91 | . 101 112 58 . 79 102 Maximum Alert Level 1 | . 1 . . . . 1 Low Security (%) 85 | 100 76 100 100 . 100 76 Level 1 14 | . 23 . . . . 23 Level 2 . | . . . . . . . Level 3 . | . . . . . . . Level 4 . | . . . . . . . Level 5 . | . . . . . . . High Security . | . . . . . . . Max Security . | . . . . . . . Squads Dispatched 9 | . 3 2 . . . 4 Investigation 3 | . 2 1 . . . . Extermination . | . . . . . . . Reinforcement 4 | . 1 1 . . . 2 Assault . | . . . . . . . Garrison 2 | . . . . . . 2 Intercept . | . . . . . . . Construction Impeded . | . . . . . . . Haulers Reinforced . | . . . . . . . Stealth | -11 -10 -9 -9 -9 -8 -8 --------- Run | Scr Mat Mat Min Exi Min Mat Distress Signals 1 | . . 1 . . . . Communications Jammed . | . . . . . . . Distress Signals . | . . . . . . . Times Spotted 53 | . 20 5 2 . 3 23 Peak Tracking Total 8 | . 3 4 4 . 3 8 Tactical Retreats 4 | . 4 . . . . . Traps | -11 -10 -9 -9 -9 -8 -8 ------- Run | Scr Mat Mat Min Exi Min Mat Traps Triggered 6 | . 4 1 . . . 1 Indirectly . | . . . . . . . Trap Hack Attempts . | . . . . . . . Triggered . | . . . . . . . Disarmed . | . . . . . . . Reprogrammed . | . . . . . . . Reused . | . . . . . . . Traps Extracted . | . . . . . . . Installed . | . . . . . . . Triggered . | . . . . . . . Machines | -11 -10 -9 -9 -9 -8 -8 ---------- Run | Scr Mat Mat Min Exi Min Mat Machines Disabled 8 | . 1 2 1 . . 4 Max in Single Turn 1 | . 1 1 1 . . 1 Machines Sabotaged . | . . . . . . . Garrisons Compromised . | . . . . . . . Overloaded Fab Kills . | . . . . . . . Fab Network Shutdowns . | . . . . . . . Hacking | -11 -10 -9 -9 -9 -8 -8 --------- Run | Scr Mat Mat Min Exi Min Mat Machines Accessed 8 | . 4 1 . 3 . . Terminals 5 | . 4 1 . . . . Fabricators . | . . . . . . . Repair Stations . | . . . . . . . Recycling Units . | . . . . . . . Scanalyzers . | . . . . . . . Garrison Access . | . . . . . . . Total Hacks 32 | . 10 4 . 18 . . Successful 27 | . 7 2 . 18 . . Failed 5 | . 3 2 . . . . Catastrophic 2 | . 2 . . . . . Database Lockouts . | . . . . . . . Manual 17 | . 12 4 . 1 . . Terminals 14 | . 10 4 . . . . Fabricators . | . . . . . . . Repair Stations . | . . . . . . . Recycling Units . | . . . . . . . Scanalyzers . | . . . . . . . Garrison Access . | . . . . . . . Terminal Hacks 19 | . 1 . . 18 . . Record 17 | . . . . 17 . . Zone Layout 1 | . 1 . . . . . EX-Prototype ID Bank 1 | . . . . 1 . . Fabricator Hacks . | . . . . . . . Repair Station Hacks . | . . . . . . . Recycling Unit Hacks . | . . . . . . . Scanalyzer . | . . . . . . . Garrison Access Hacks . | . . . . . . . Unauthorized Hacks 8 | . 6 2 . . . . Terminals 8 | . 6 2 . . . . Track 2 | . 1 1 . . . . Assimilate 2 | . 2 . . . . . Botnet 1 | . . 1 . . . . Detonate 1 | . 1 . . . . . Operators 1 | . 1 . . . . . Search 1 | . 1 . . . . . Fabricators . | . . . . . . . Repair Stations . | . . . . . . . Recycling Units . | . . . . . . . Scanalyzers . | . . . . . . . Garrison Access . | . . . . . . . Data Cores Recovered 1 | . 1 . . . . . Used 1 | . 1 . . . . . Hacking Detections 2 | . 1 1 . . . . Full Trace Events 1 | . . 1 . . . . Feedback Events . | . . . . . . . Feedback Blocked . | . . . . . . . Robot Schematics Acquired . | . . . . . . . Robots Built . | . . . . . . . Matter . | . . . . . . . Time . | . . . . . . . Total Robot Build Rating . | . . . . . . . Part Schematics Acquired . | . . . . . . . Parts Built . | . . . . . . . Matter . | . . . . . . . Time . | . . . . . . . Total Part Build Rating . | . . . . . . . Parts Repaired . | . . . . . . . Time . | . . . . . . . Parts Recycled . | . . . . . . . Recycled Matter . | . . . . . . . Retrieved Matter . | . . . . . . . Retrieved Components . | . . . . . . . Parts Scanalyzed . | . . . . . . . Part Schematics Acquired . | . . . . . . . Parts Damaged . | . . . . . . . Bothacking | -11 -10 -9 -9 -9 -8 -8 ------------ Run | Scr Mat Mat Min Exi Min Mat Used RIF Installer . | . . . . . . . Robots Hacked . | . . . . . . . Non-combat . | . . . . . . . Combat . | . . . . . . . Robot Hacks Applied . | . . . . . . . Relay Couplers Released . | . . . . . . . Robots Rewired . | . . . . . . . Allies Hacked . | . . . . . . . Hacks Repelled . | . . . . . . . Allies | -11 -10 -9 -9 -9 -8 -8 -------- Run | Scr Mat Mat Min Exi Min Mat Total Allies . | . . . . . . . Largest Group . | . . . . . . . Highest-Rated Group . | . . . . . . . Highest-Rated Ally . | . . . . . . . Total Orders . | . . . . . . . Ally Attacks . | . . . . . . . Total Damage . | . . . . . . . Kills . | . . . . . . . Allies Corrupted . | . . . . . . . Allies Melted . | . . . . . . . Intel | -11 -10 -9 -9 -9 -8 -8 ------- Run | Scr Mat Mat Min Exi Min Mat Robot Analysis Total . | . . . . . . . Derelict Logs Recovered 3 | . . . 3 . . . Drone Launches . | . . . . . . . Drone Recoveries . | . . . . . . . Exploration | -11 -10 -9 -9 -9 -8 -8 ------------- Run | Scr Mat Mat Min Exi Min Mat Turns Passed 3736 | 73 833 282 461 810 279 998 Spaces Moved 2179 | 39 590 149 280 537 180 404 Core 70 | 18 . . . . . 52 Treads 20 | . . . . . . 20 Legs 2089 | 21 590 149 280 537 180 332 Wheels . | . . . . . . . Hover . | . . . . . . . Flight . | . . . . . . . Fastest Speed 50 | 50 120 150 150 150 150 150 Average Speed 149 | 131 120 171 150 150 150 181 Slowest Speed 400 | 200 150 330 150 150 150 400 Overloaded Moves . | . . . . . . . Propulsion Burnouts . | . . . . . . . Robots Hopped . | . . . . . . . Cave-ins Triggered . | . . . . . . . Exploration Rate (%) 43 | 4 75 15 40 91 42 37 Regions Visited 6 Branch Regions 3 Pre-discovered Areas 1 | . . . 1 . . . Known Exits Taken . | . . . . . . . Unknown Exits Taken 6 | 1 1 1 1 1 1 . Scrap Searched 1 | . . . . . 1 . Spaces Dug 43 | . . 21 . . . 22 Terrain Destroyed 229 | . 79 31 13 . 19 87 Melee . | . . . . . . . Projectile . | . . . . . . . AOE 229 | . 79 31 13 . 19 87 Terrain Rammed . | . . . . . . . Walls Destroyed . | . . . . . . . Machines Disabled . | . . . . . . . Actions | -11 -10 -9 -9 -9 -8 -8 --------- Run | Scr Mat Mat Min Exi Min Mat Total 2581 | 61 672 166 319 543 187 633 Wait 223 | 6 11 . 38 . 2 166 Move 2173 | 38 589 148 279 536 179 404 Hop . | . . . . . . . Pick Up 43 | 8 17 2 . 4 2 10 Fast Attach 3 | . 3 . . . . . Attach 33 | 6 7 5 1 1 2 11 Detach 2 | . . 2 . . . . Swap 3 | 1 . 1 . . . 1 Drop 22 | 2 11 2 . 2 . 5 Fire 69 | . 25 6 1 . 2 35 Melee 5 | . 5 . . . . . Ram 1 | . . . . . . 1 Kick 4 | . 4 . . . . . Crush . | . . . . . . . Escape Stasis . | . . . . . . . Rewire . | . . . . . . . Trap . | . . . . . . . Miscellaneous . | . . . . . . . Route ------- -11/Scrapyard -10/Materials (discovered 2 exits: *Mat x2) -9/Materials -9/Mines (discovered 2 exits: [*Mat] / *Exi) -9/Exiles (discovered 2 exits: [*Min x2]) -8/Mines -8/Materials (discovered 1 exit: Fac) History --------- Turn | Location | Event 20 | -11/Scrapyard | Discovered new exit (range 16) 74 | -11/Scrapyard | Entered Materials 314 | -10/Materials | Build established: Mutant 424 | -10/Materials | Discovered new exit (range 17) 537 | -10/Materials | Core integrity fell below 50% 664 | -10/Materials | Core integrity fell below 20% 706 | -10/Materials | Discovered new exit (range 13) 907 | -10/Materials | Entered another Materials area 907 | -9/Materials | Evolved 2 slots: Utility x2 1110 | -9/Materials | Discovered new exit (range 16) 1189 | -9/Materials | Entered Mines 1194 | -9/Mines | Met a Derelict bent on vengeance 1230 | -9/Mines | Learned location of Zion (-7) 1524 | -9/Mines | Learned 4 Materials zone layouts 1575 | -9/Mines | Learned Materials terminal intel 1584 | -9/Mines | Discovered new exit (range 7) 1593 | -9/Mines | Deemed a non-threat by the Exiles lab entrance 1642 | -9/Mines | Discovered new exit (range 5) 1650 | -9/Mines | Entered Exiles 1673 | -9/Exiles | Discovered new exit (range 15) 1697 | -9/Exiles | Met 8R-AWN 1718 | -9/Exiles | Met EX-HEX 1798 | -9/Exiles | Met EX-DEC 1904 | -9/Exiles | Visited The Gauntlet 2092 | -9/Exiles | Met EX-BIN 2113 | -9/Exiles | Aligned with FarCom system 2115 | -9/Exiles | Given EX-Vault access code 2149 | -9/Exiles | Opened EX-Vault 2212 | -9/Exiles | Found Cloak of Protection 2219 | -9/Exiles | Found Trap Reconfigurator 2253 | -9/Exiles | Warned to stay clear of 0b10 Research branches 2439 | -9/Exiles | Discovered new exit (range 14) 2460 | -9/Exiles | Left Exiles lab with Cloak of Protection 2460 | -9/Exiles | Entered Mines 2633 | -8/Mines | Discovered new exit (range 8) 2739 | -8/Mines | Entered Materials 2739 | -8/Materials | Evolved 2 slots: Power x1, Propulsion x1 2740 | -8/Materials | Identified exit to Factory 2741 | -8/Materials | Loaded intel: 12 terminal locations 3102 | -8/Materials | Garrison activated, responded to threat 3330 | -8/Materials | Garrison activated, responded to threat 3387 | -8/Materials | Lost 3 parts (1p1u1w) 3388 | -8/Materials | Destroyed 9 combat bots 3496 | -8/Materials | Lost 6 parts (1p2n2u1w) 3549 | -8/Materials | Core integrity fell below 50% 3730 | -8/Materials | Core integrity fell below 20% 3737 | -8/Materials | Destroyed by Y-45 Defender with Beam Rifle Last Messages --------------- 03581_ H-55 Commando knocked back. 03583_ K-01 Serf cleans the Neutrino Reactor. 03584_ Penetrated by Slug. 03590_ Slug penetrates Wall. 03595_ H-55 Commando destroyed. 03596_ K-01 Serf collects debris. 03597_ Acquired 15 matter. 03601_ Acquired 10 matter. 03617_ Slammed into R-06 Scavenger. 03617_ Flak Cannon permanently disabled. 03617_ Destabilizing: Short circuit. 03632_ Dropped Hcp. Storage Unit. 03633_ Dropped Lrg. Storage Unit. 03633_ Acquired Hcp. Storage Unit. 03634_ System corrupted: Component data lost. 03672_ ALERT: Hostiles spotted, dispatching reinforcements to Terminal M007. 03708_ Broken Flak Cannon destroyed. 03716_ Acquired Carbon-fiber Leg. 03730_ Slug penetrates Wall. 03733_ Penetrated by Slug. Map ----- +----------------------------------------------------+ | | | | | | | | | | | | | | | | | | | ?????????????###########???????????????????? | | ?????????????# #???????????????????? | | ?????????????# #???????????????????? | | ?????????????# #???????????????????? | | ?????????????# ##??????????????????? | | ?????????????#####+#####T??????????????????? | | ??????????????# ??????????????????? | | ??????????????# < ??????????????????? | | ??????????????# ??????????????????? | | ??????????????##### ###??????????????????? | | ??????????????????# #????????????????????? | | ??????????????????# #????????????????????? | | ?????????????###??# #????????????????????? | | ????????###### #### #????????????????????? | | ????????# ## #????????????????????? | | ????????#! [[! ## ##???????????????????? | | ?######## [[! # @ #???????????????????? | | ?# # [[ # #???????????????????? | | ?# # Y Y #???????????????????? | | ?# # # #???????????????????? | | ?# # # #???????????????????? | | ?# # "T" ## ########?????????????? | | ?# # ## # #?????????????? | | ?####+############# Y# #?????????????? | | ????# + "" !#?????????????? | | ????# ####### # S"" #?????????????? | | ????# # # # "" #?????????????? | | ????# + """ # # ]#?????????????? | | ????####### # """ # ####+###?????????????? | | ??????????# # """ # #??# #???????????????? | | ??????????# # # uh#??# #???????????????? | | ??######### ####### #??# #???????????????? | | ??# ## ##????# #### ######??????????? | | ??# """ # ###### #??????????? | | ??# """ + ######### #??????????? | | ??# """ # #######/####?????# ########???? | | ??# ## ### ?????# # #???? | | ??# ## ### ?????# # #???? | | ??######### T# ?????#!# """ #???? | | ??????????# ""# """" """"?????# # """ #???? | | ?########?# ### """" """"?????#!# """ #???? | +----------------------------------------------------+ Best States ------------- Heat Dissipation 31 Energy Generation 10 Energy Capacity 250 Matter Stores 270 Matter Capacity 300 Sight Range 18 Terrain Scan Range 14 Terrain Scan Density 10 Cloak Strength 5 Armor Coverage 225 Resistance: TH 10 Utility Shielding 66 Evasion (%) 50 Recoil Reduction 1 Item Schematics ----------------- None Robot Schematics ------------------ None Fabricated ------------ Nothing Alien Tech Used ----------------- None Achievements -------------- Brute Force Dynamic Key Challenges ------------ None Game ------ Seed EtherialMobileProtomatter Manual? 0 Play Time 00:31:15 Cumulative 9.3 hours Start 2022.01.22 @ 23:55:02 End 2022.01.23 @ 00:26:31 Sessions 1 Manual Loads 0 Difficulty Rogue Special Mode None Game No. 23 Rogue 23 Adventurer 0 Explorer 0 Win Type - Total 0 Types 0/0/0/0/0/0/0/0/0 Lore% 19 Gallery% 15 Achievement% 18 Wizard Run 0 Options --------- ASCII 0 Keyboard 0 Movement Numpad Keybinds 0 Fullscreen 1 Font 12/Smallcaps Map View 83x54 Tactical HUD 1 Map Filters NONE Filters NONE Steam X RUN: 92282854-606a-4cfb-bcd3-56f184669053